[Event "2nd European Youth GP 2017"]
[Site "Jermuk"]
[Date "2017.10.05"]
[Round "1"]
[White "Kaasen, Tor Fredrik"]
[Black "Zarubitski, Viachaslau"]
[Result "0-1"]
[ECO "D00"]
[WhiteElo "2371"]
[BlackElo "2311"]
[Annotator "NA"]
[PlyCount "58"]
[EventDate "2017.??.??"]
[EventType "tourn"]
[EventCountry "ARM"]
[SourceTitle "playchess.com"]
[Source "ChessBase"]
[SourceQuality "1"]
[TimeControl "5400+30"]

1. d4 {[%emt 0:00:00]} d5 {[%emt 0:00:08]} 2. Bf4 {[%emt 0:00:04]} Nf6 {[%emt 0:00:10]} 3. e3 {[%emt 0:00:46]} c5 {[%emt 0:00:42]} 4. Nf3 {[%emt 0:00:33]} e6 {[%emt 0:00:58]} 5. Nbd2 {[%emt 0:01:03]} Nc6 {[%emt 0:00:33]} 6. c3 {[%emt 0:01:33]} Bd6 {[%emt 0:01:12]} 7. Bg3 {[%emt 0:00:48]} O-O {[%emt 0:00:26]} 8. Bd3 {[%emt 0:00:35]} Qe7 {[%emt 0:00:55]} 9. Qe2 Bxg3 {[%emt 0:14:19]} 10. hxg3 {[%emt 0:03:36]} e5 {[%emt 0:00:05]} 11. Nxe5 {[%emt 0:17:55]} Nxe5 12. Bxh7+ {[%emt 0:13:15]} Nxh7 {[%emt 0:00:39]} 13. Qh5 {[%emt 0:00:04]} Bf5 {[%emt 0:00:28]} 14. Qxf5 {[%emt 0:00:20]} Ng6 {[%emt 0:06:40]} 15. O-O-O Qe6 16. Qc2 {[%emt 0:22:14]} cxd4 {[%emt 0:02:06]} 17. exd4 {[%emt 0:01:59]} Rfe8 18. f4 {[%emt 0:09:26]} Qe3 {[%emt 0:06:35]} 19. Rh3 {[%emt 0:06:12]} Nf6 {[%emt 0:19:09]} 20. Qf5 {[%emt 0:10:44]} Ne4 21. Qh5 Rac8 {[%emt 0:04:46]} 22. g4 {[%emt 0:02:46]} Qxf4 {[%emt 0:13:54]} 23. Rf3 Qd6 24. Rh1 {[%emt 0:06:16]} Nxd2 {[%emt 0:01:27]} 25. Kxd2 {[%emt 0:00:18]} Re4 {[%emt 0:00:51]} 26. Qh7+ {[%emt 0:00:56]} Kf8 {[%emt 0:00:02]} 27. Rhf1 Rc7 {[%emt 0:00:23]} 28. g5 {[%emt 0:00:59]} Rh4 {[%emt 0:00:25]} 29. Rf6 gxf6 {[%emt 0:00:38]} 0-1

[Event "2nd European Youth GP 2017"]
[Site "Jermuk"]
[Date "2017.10.05"]
[Round "1"]
[White "Gharibyan, Mamikon"]
[Black "Nesterov, Arseniy"]
[Result "1-0"]
[ECO "E19"]
[WhiteElo "2346"]
[BlackElo "2350"]
[Annotator "NA"]
[PlyCount "79"]
[EventDate "2017.??.??"]
[EventType "tourn"]
[EventCountry "ARM"]
[SourceTitle "playchess.com"]
[Source "ChessBase"]
[SourceQuality "1"]
[TimeControl "5400+30"]

1. d4 {[%emt 0:00:00]} Nf6 {[%emt 0:00:07]} 2. Nf3 {[%emt 0:00:00]} e6 {[%emt 0:00:12]} 3. c4 {[%emt 0:00:53]} b6 {[%emt 0:00:15]} 4. g3 {[%emt 0:03:44]} Bb7 {[%emt 0:00:06]} 5. Bg2 {[%emt 0:01:39]} Be7 {[%emt 0:00:16]} 6. O-O {[%emt 0:02:13]} O-O {[%emt 0:00:12]} 7. Nc3 {[%emt 0:04:09]} Ne4 {[%emt 0:00:57]} 8. Qc2 {[%emt 0:02:19]} Nxc3 {[%emt 0:05:02]} 9. Qxc3 {[%emt 0:04:54]} c5 {[%emt 0:02:45]} 10. Rd1 {[%emt 0:14:46]} d6 {[%emt 0:10:36]} 11. Be3 {[%emt 0:11:58]} Nd7 {[%emt 0:05:23]} 12. Qc2 {[%emt 0:07:01]} Rb8 {[%emt 0:20:18]} 13. Rac1 {[%emt 0:09:52]} f5 {[%emt 0:17:26]} 14. Qa4 {[%emt 0:08:39]} a6 {[%emt 0:15:54]} 15. dxc5 {[%emt 0:02:32]} Nxc5 {[%emt 0:01:15]} 16. Qc2 {[%emt 0:01:19]} Be4 {[%emt 0:03:19]} 17. Qd2 {[%emt 0:00:42]} Qc8 {[%emt 0:09:59]} 18. Bg5 {[%emt 0:03:14]} Bxg5 {[%emt 0:01:01]} 19. Qxg5 {[%emt 0:00:17]} Qc7 {[%emt 0:04:19]} 20. b4 {[%emt 0:01:19]} Bxf3 {[%emt 0:00:35]} 21. exf3 {[%emt 0:02:07]} Nb7 {[%emt 0:00:21]} 22. Qe3 {[%emt 0:00:22]} e5 {[%emt 0:00:37]} 23. f4 {[%emt 0:00:30]} a5 {[%emt 0:00:32]} 24. a3 {[%emt 0:00:30]} axb4 {[%emt 0:00:04]} 25. axb4 {[%emt 0:00:02]} Kh8 {[%emt 0:00:55]} 26. Bd5 {[%emt 0:02:46]} Nd8 {[%emt 0:00:32]} 27. c5 {[%emt 0:01:59]} bxc5 {[%emt 0:00:22]} 28. bxc5 {[%emt 0:00:14]} e4 {[%emt 0:00:34]} 29. c6 {[%emt 0:01:24]} h6 {[%emt 0:00:28]} 30. Rd2 {[%emt 0:02:38]} Re8 {[%emt 0:00:37]} 31. Ra2 {[%emt 0:00:24]} Rb6 {[%emt 0:00:27]} 32. Ra8 {[%emt 0:00:20]} Re7 {[%emt 0:00:31]} 33. Rca1 {[%emt 0:01:15]} Kh7 {[%emt 0:00:32]} 34. R1a7 {[%emt 0:00:30]} Rb1+ {[%emt 0:00:01]} 35. Kg2 {[%emt 0:00:11]} Ne6 {[%emt 0:00:28]} 36. Bxe4 {[%emt 0:01:20]} Rb5 {[%emt 0:00:59]} 37. Rxc7 {[%emt 0:00:27]} Nxc7 {[%emt 0:00:06]} 38. Bxf5+ Rxf5 39. Qxe7 {[%emt 0:00:48]} Nxa8 {[%emt 0:00:32]} 40. Qd8 {[%emt 0:00:42]} 1-0

[Event "2nd European Youth GP 2017"]
[Site "Jermuk"]
[Date "2017.10.05"]
[Round "1"]
[White "Kacharava, Nikolozi"]
[Black "Shubin, Kirill"]
[Result "1-0"]
[ECO "C03"]
[WhiteElo "2206"]
[BlackElo "2359"]
[Annotator "NA"]
[PlyCount "67"]
[EventDate "2017.??.??"]
[EventType "tourn"]
[EventCountry "ARM"]
[SourceTitle "playchess.com"]
[Source "ChessBase"]
[SourceQuality "1"]
[TimeControl "5400+30"]

1. e4 {[%emt 0:00:00]} e6 {[%emt 0:00:17]} 2. d4 {[%emt 0:00:00]} d5 {[%emt 0:00:05]} 3. Nd2 {[%emt 0:00:18]} Be7 {[%emt 0:00:06]} 4. Bd3 {[%emt 0:01:06]} c5 {[%emt 0:00:11]} 5. dxc5 {[%emt 0:00:21]} Nf6 {[%emt 0:00:08]} 6. Qe2 {[%emt 0:00:51]} O-O {[%emt 0:00:13]} 7. Ngf3 {[%emt 0:00:41]} a5 {[%emt 0:00:13]} 8. O-O {[%emt 0:01:01]} Na6 {[%emt 0:00:07]} 9. e5 {[%emt 0:00:28]} Nd7 {[%emt 0:00:04]} 10. c4 {[%emt 0:00:24]} Naxc5 {[%emt 0:01:24]} 11. Bc2 {[%emt 0:00:24]} b6 {[%emt 0:00:49]} 12. Rd1 {[%emt 0:00:17]} Ba6 {[%emt 0:01:13]} 13. b3 {[%emt 0:00:30]} Nb8 {[%emt 0:10:37]} 14. Bb2 {[%emt 0:05:37]} Nc6 {[%emt 0:00:31]} 15. Rac1 {[%emt 0:02:01]} Qe8 {[%emt 0:08:32]} 16. Qe3 {[%emt 0:06:26]} h6 {[%emt 0:06:11]} 17. cxd5 {[%emt 0:07:29]} exd5 {[%emt 0:00:48]} 18. Nf1 {[%emt 0:04:58]} Ne6 {[%emt 0:03:30]} 19. Ng3 {[%emt 0:08:15]} Bc5 {[%emt 0:00:23]} 20. Qd2 {[%emt 0:06:00]} d4 {[%emt 0:05:42]} 21. Be4 {[%emt 0:06:16]} Rc8 {[%emt 0:00:41]} 22. a3 {[%emt 0:13:12]} Bb5 {[%emt 0:05:45]} 23. Nf5 {[%emt 0:05:51]} f6 {[%emt 0:00:39]} 24. Nd6 {[%emt 0:13:58]} Bxd6 {[%emt 0:00:09]} 25. exd6 {[%emt 0:00:08]} Qd7 {[%emt 0:00:59]} 26. a4 {[%emt 0:00:41]} Ba6 {[%emt 0:00:17]} 27. Ba3 {[%emt 0:00:21]} Bb7 {[%emt 0:04:08]} 28. Re1 {[%emt 0:01:15]} Ne5 {[%emt 0:04:21]} 29. Bxb7 {[%emt 0:02:48]} Qxb7 {[%emt 0:00:33]} 30. Nxd4 {[%emt 0:00:53]} Qd5 {[%emt 0:06:48]} 31. Rcd1 {[%emt 0:01:44]} Nc5 {[%emt 0:02:46]} 32. Bxc5 {[%emt 0:04:40]} Rxc5 {[%emt 0:00:22]} 33. f4 {[%emt 0:00:50]} Nd7 {[%emt 0:02:35]} 34. Ne6 {[%emt 0:00:51]} 1-0

[Event "2nd European Youth GP 2017"]
[Site "Jermuk"]
[Date "2017.10.05"]
[Round "2"]
[White "Pogosyan, Stefan"]
[Black "Zarubitski, Viachaslau"]
[Result "1-0"]
[ECO "D11"]
[WhiteElo "2368"]
[BlackElo "2311"]
[Annotator "NA"]
[PlyCount "65"]
[EventDate "2017.??.??"]
[EventType "tourn"]
[EventCountry "ARM"]
[SourceTitle "playchess.com"]
[Source "ChessBase"]
[SourceQuality "1"]
[TimeControl "5400+30"]

1. d4 {[%emt 0:00:00]} d5 {[%emt 0:00:11]} 2. c4 {[%emt 0:00:00]} c6 {[%emt 0:00:06]} 3. Nf3 {[%emt 0:00:00]} Nf6 {[%emt 0:00:07]} 4. Qc2 {[%emt 0:00:00]} dxc4 {[%emt 0:00:14]} 5. Qxc4 {[%emt 0:00:14]} Bf5 {[%emt 0:00:10]} 6. Nc3 {[%emt 0:00:14]} Nbd7 {[%emt 0:00:59]} 7. g3 {[%emt 0:00:25]} e6 {[%emt 0:01:12]} 8. Bg2 {[%emt 0:00:12]} Be7 {[%emt 0:00:31]} 9. O-O {[%emt 0:00:07]} O-O {[%emt 0:00:08]} 10. Re1 {[%emt 0:01:00]} Ne4 {[%emt 0:00:14]} 11. Bf4 {[%emt 0:00:46]} Qb6 {[%emt 0:09:42]} 12. Qb3 {[%emt 0:07:51]} Rfd8 {[%emt 0:19:49]} 13. Nh4 {[%emt 0:11:47]} Bxh4 {[%emt 0:15:53]} 14. gxh4 {[%emt 0:13:16]} Nxc3 {[%emt 0:15:08]} 15. bxc3 {[%emt 0:01:02]} e5 {[%emt 0:00:10]} 16. dxe5 {[%emt 0:08:08]} Be6 {[%emt 0:06:46]} 17. c4 {[%emt 0:15:50]} Qa6 {[%emt 0:06:22]} 18. Rac1 {[%emt 0:01:38]} Nf8 {[%emt 0:02:15]} 19. h5 {[%emt 0:07:40]} Rd4 {[%emt 0:01:28]} 20. Qg3 {[%emt 0:05:10]} h6 {[%emt 0:03:48]} 21. e3 {[%emt 0:06:02]} Rxc4 {[%emt 0:00:05]} 22. Bf1 {[%emt 0:00:07]} Kh8 {[%emt 0:00:18]} 23. Bxc4 {[%emt 0:07:32]} Bxc4 {[%emt 0:00:01]} 24. Kh1 {[%emt 0:00:01]} Ne6 {[%emt 0:01:46]} 25. Bxh6 {[%emt 0:04:39]} gxh6 {[%emt 0:04:47]} 26. Qh4 {[%emt 0:00:06]} Bd3 {[%emt 0:01:07]} 27. Qf6+ {[%emt 0:00:46]} Kg8 {[%emt 0:00:02]} 28. Rg1+ {[%emt 0:00:59]} Ng5 {[%emt 0:00:16]} 29. Rxg5+ {[%emt 0:01:06]} hxg5 {[%emt 0:00:08]} 30. h6 {[%emt 0:00:01]} Kf8 {[%emt 0:03:43]} 31. e6 {[%emt 0:00:10]} Be4+ 32. Kg1 Bg6 33. h7 1-0

[Event "2nd European Youth GP 2017"]
[Site "Jermuk"]
[Date "2017.10.05"]
[Round "2"]
[White "Shubin, Kirill"]
[Black "Kaasen, Tor Fredrik"]
[Result "1-0"]
[ECO "B40"]
[WhiteElo "2359"]
[BlackElo "2371"]
[Annotator "NA"]
[PlyCount "115"]
[EventDate "2017.??.??"]
[EventType "tourn"]
[EventCountry "ARM"]
[SourceTitle "playchess.com"]
[Source "ChessBase"]
[SourceQuality "1"]
[TimeControl "5400+30"]

1. e4 {[%emt 0:00:00]} c5 {[%emt 0:00:13]} 2. Nf3 {[%emt 0:00:00]} e6 {[%emt 0:00:12]} 3. g3 {[%emt 0:00:00]} Nc6 {[%emt 0:02:00]} 4. Bg2 {[%emt 0:00:00]} Nf6 {[%emt 0:00:24]} 5. Qe2 {[%emt 0:00:00]} d6 {[%emt 0:01:27]} 6. c3 {[%emt 0:06:20]} e5 {[%emt 0:06:02]} 7. O-O {[%emt 0:00:50]} Be7 {[%emt 0:00:12]} 8. Rd1 {[%emt 0:00:53]} O-O {[%emt 0:02:34]} 9. d4 {[%emt 0:02:28]} Qc7 {[%emt 0:03:45]} 10. dxc5 {[%emt 0:05:07]} dxc5 {[%emt 0:00:09]} 11. Na3 {[%emt 0:00:13]} h6 {[%emt 0:04:56]} 12. Nh4 {[%emt 0:06:25]} Bg4 {[%emt 0:08:27]} 13. f3 {[%emt 0:03:54]} Be6 {[%emt 0:02:19]} 14. Nf5 {[%emt 0:00:42]} Rfd8 {[%emt 0:08:59]} 15. Nxe7+ {[%emt 0:08:32]} Qxe7 {[%emt 0:00:54]} 16. Be3 {[%emt 0:03:15]} Rxd1+ {[%emt 0:04:21]} 17. Rxd1 {[%emt 0:00:34]} Bxa2 {[%emt 0:07:40]} 18. Qb5 {[%emt 0:00:04]} Rd8 {[%emt 0:01:51]} 19. Ra1 {[%emt 0:00:10]} Be6 {[%emt 0:01:12]} 20. Bxc5 {[%emt 0:00:30]} Qd7 {[%emt 0:03:53]} 21. Be3 {[%emt 0:02:52]} a6 {[%emt 0:02:16]} 22. Qb6 {[%emt 0:02:13]} Qc8 {[%emt 0:02:43]} 23. Bf2 {[%emt 0:03:06]} Rd3 {[%emt 0:02:47]} 24. Be1 {[%emt 0:00:45]} Rd4 {[%emt 0:05:23]} 25. Nb5 {[%emt 0:01:50]} Rd3 {[%emt 0:10:40]} 26. Na7 {[%emt 0:04:41]} Nxa7 {[%emt 0:00:05]} 27. Qxa7 {[%emt 0:00:03]} Qd7 {[%emt 0:02:58]} 28. Qf2 {[%emt 0:05:49]} Nh7 {[%emt 0:07:48]} 29. h4 {[%emt 0:02:20]} Nf6 {[%emt 0:01:25]} 30. Bf1 {[%emt 0:00:36]} Rd6 {[%emt 0:00:09]} 31. Be2 {[%emt 0:02:48]} Bb3 {[%emt 0:03:25]} 32. c4 {[%emt 0:05:33]} Qc8 {[%emt 0:02:52]} 33. c5 {[%emt 0:02:26]} Rc6 {[%emt 0:00:07]} 34. Ra3 {[%emt 0:00:33]} Be6 {[%emt 0:01:04]} 35. b4 {[%emt 0:00:04]} Ne8 {[%emt 0:01:25]} 36. f4 {[%emt 0:00:32]} exf4 {[%emt 0:00:13]} 37. gxf4 {[%emt 0:00:34]} Bg4 {[%emt 0:00:28]} 38. Bc4 {[%emt 0:00:47]} Be6 {[%emt 0:00:21]} 39. Bd3 {[%emt 0:00:51]} Bg4 {[%emt 0:00:32]} 40. f5 {[%emt 0:01:01]} Nf6 {[%emt 0:01:02]} 41. e5 {[%emt 0:00:57]} Nd5 {[%emt 0:00:58]} 42. Be4 {[%emt 0:00:20]} Ne7 {[%emt 0:00:22]} 43. Bxc6 {[%emt 0:00:47]} Nxc6 {[%emt 0:00:06]} 44. e6 {[%emt 0:01:29]} Ne5 {[%emt 0:00:46]} 45. Qf4 {[%emt 0:00:48]} f6 {[%emt 0:00:20]} 46. Bc3 {[%emt 0:00:56]} Nf3+ {[%emt 0:00:04]} 47. Kf2 {[%emt 0:00:26]} h5 {[%emt 0:00:24]} 48. Bxf6 {[%emt 0:01:27]} gxf6 {[%emt 0:01:07]} 49. Rxf3 {[%emt 0:00:05]} Bxf3 {[%emt 0:00:12]} 50. Qxf3 {[%emt 0:00:34]} Qd8 {[%emt 0:00:24]} 51. Qg3+ {[%emt 0:00:05]} Kh8 {[%emt 0:00:48]} 52. Qd6 {[%emt 0:00:08]} Qg8 {[%emt 0:00:01]} 53. e7 {[%emt 0:05:21]} Qa2+ {[%emt 0:00:05]} 54. Ke3 {[%emt 0:00:08]} Qa3+ {[%emt 0:00:34]} 55. Qd3 {[%emt 0:00:04]} Qc1+ {[%emt 0:00:26]} 56. Ke2 {[%emt 0:00:07]} Qb2+ {[%emt 0:00:33]} 57. Qd2 {[%emt 0:00:09]} Qe5+ {[%emt 0:00:38]} 58. Qe3 {[%emt 0:00:04]} 1-0

[Event "2nd European Youth GP 2017"]
[Site "Jermuk"]
[Date "2017.10.05"]
[Round "2"]
[White "Nesterov, Arseniy"]
[Black "Pultinevicius, Paulius"]
[Result "1-0"]
[ECO "D80"]
[WhiteElo "2350"]
[BlackElo "2387"]
[Annotator "NA"]
[PlyCount "79"]
[EventDate "2017.??.??"]
[EventType "tourn"]
[EventCountry "ARM"]
[SourceTitle "playchess.com"]
[Source "ChessBase"]
[SourceQuality "1"]
[TimeControl "5400+30"]

1. d4 {[%emt 0:00:00]} Nf6 {[%emt 0:00:04]} 2. c4 {[%emt 0:00:00]} g6 {[%emt 0:00:03]} 3. Nc3 {[%emt 0:00:00]} d5 {[%emt 0:00:04]} 4. Bg5 {[%emt 0:00:00]} Ne4 {[%emt 0:00:44]} 5. Bh4 {[%emt 0:00:40]} Nxc3 {[%emt 0:00:05]} 6. bxc3 {[%emt 0:00:04]} dxc4 {[%emt 0:00:10]} 7. Qa4+ {[%emt 0:11:48]} Nd7 {[%emt 0:06:25]} 8. e4 {[%emt 0:09:36]} Bg7 {[%emt 0:02:27]} 9. Bxc4 {[%emt 0:08:40]} c5 {[%emt 0:05:06]} 10. Ne2 {[%emt 0:02:41]} O-O {[%emt 0:11:55]} 11. Qa3 {[%emt 0:03:28]} Qc7 {[%emt 0:00:48]} 12. Rc1 {[%emt 0:13:46]} Rb8 {[%emt 0:02:13]} 13. Bxe7 {[%emt 0:08:32]} Re8 {[%emt 0:17:09]} 14. Bh4 {[%emt 0:00:10]} Bf8 {[%emt 0:04:14]} 15. Bg3 {[%emt 0:03:08]} Bd6 {[%emt 0:00:12]} 16. Qb3 {[%emt 0:21:36]} Rxe4 {[%emt 0:00:56]} 17. Bxf7+ {[%emt 0:00:45]} Kg7 {[%emt 0:04:22]} 18. Qd5 {[%emt 0:01:11]} Rxe2+ {[%emt 0:00:50]} 19. Kxe2 {[%emt 0:00:01]} Bf4 {[%emt 0:02:56]} 20. Be6 {[%emt 0:06:36]} Nf6 {[%emt 0:05:24]} 21. Bxf4 {[%emt 0:00:29]} Qxf4 {[%emt 0:00:11]} 22. Qe5 {[%emt 0:00:08]} Qxe5+ {[%emt 0:00:07]} 23. dxe5 {[%emt 0:00:04]} Bxe6 {[%emt 0:00:06]} 24. exf6+ {[%emt 0:00:08]} Kxf6 {[%emt 0:00:03]} 25. Rc2 {[%emt 0:02:29]} b5 {[%emt 0:01:51]} 26. Rd1 {[%emt 0:00:56]} Rb6 {[%emt 0:00:44]} 27. Rb2 {[%emt 0:02:16]} Ra6 {[%emt 0:00:36]} 28. Ke3 {[%emt 0:01:04]} Ra3 {[%emt 0:04:26]} 29. Rxb5 {[%emt 0:00:31]} Rxc3+ {[%emt 0:00:23]} 30. Kd2 {[%emt 0:01:59]} Ra3 {[%emt 0:00:50]} 31. Rxc5 {[%emt 0:00:08]} Rxa2+ {[%emt 0:00:06]} 32. Rc2 {[%emt 0:00:25]} Ra6 {[%emt 0:00:49]} 33. Rc3 {[%emt 0:00:37]} h5 {[%emt 0:04:15]} 34. Ke3 {[%emt 0:00:10]} h4 {[%emt 0:00:30]} 35. Rd4 {[%emt 0:00:43]} g5 {[%emt 0:00:12]} 36. h3 {[%emt 0:00:36]} Ke5 {[%emt 0:02:26]} 37. f4+ {[%emt 0:01:57]} Kf6 {[%emt 0:04:04]} 38. fxg5+ {[%emt 0:00:06]} Kxg5 {[%emt 0:00:00]} 39. Rc5+ {[%emt 0:00:07]} Bf5 {[%emt 0:00:03]} 40. Rg4+ {[%emt 0:00:16]} 1-0

[Event "2nd European Youth GP 2017"]
[Site "Jermuk"]
[Date "2017.10.06"]
[Round "3"]
[White "Zarubitski, Viachaslau"]
[Black "Shubin, Kirill"]
[Result "1/2-1/2"]
[ECO "C15"]
[WhiteElo "2311"]
[BlackElo "2359"]
[Annotator "NA RC"]
[PlyCount "117"]
[EventDate "2017.??.??"]
[EventType "tourn"]
[EventCountry "ARM"]
[SourceTitle "playchess.com"]
[Source "ChessBase"]
[SourceQuality "1"]
[TimeControl "5400+30"]

{[%evp 15,110,6,32767,32767,32767,32767,0,32767,-5,-8,6,0,0,0,0,0,9,12,20,15,9,32767,32767,32767,16,-27,-13,-17,-12,-23,-10,-8,-13,-36,-19,-16,-14,-14,-19,-12,-11,0,0,32767,-5,-16,32767,-118,-122,-119,-104,-107,32767,-133,32767,-106,32767,-57,-27,-25,-35,-24,-18,-69,-50,-67,-66,-81,-75,32767,32767,32767,32767,32767,32767,-77,-80,-82,-80,-94,-77,-111,-73,-80,-46,-4631,-8,-8,-8,-8,-8,-8,-8,-8,0,-8,-8]} 1. e4 {[%emt 0:00:00]} e6 {[%emt 0:00:05]} 2. d4 {[%emt 0:00:00]} d5 {[%emt 0:00:03]} 3. Nc3 {[%emt 0:00:00]} Bb4 {[%emt 0:00:03]} 4. exd5 {[%emt 0:00:00]} exd5 {[%emt 0:01:28]} 5. Bd3 {[%emt 0:00:00]} c6 {[%emt 0:00:03]} 6. Nge2 {[%emt 0:00:02]} Ne7 {[%emt 0:01:39]} 7. Ng3 {[%emt 0:00:49] C01: French: Exchange Variation} O-O {[%emt 0:00:26]} 8. O-O {[%emt 0:00:22] LiveBook: 19 Games} Ng6 {[%emt 0:00:09]} 9. a3 $146 {[%emt 0:02:52]} ({Predecessor:} 9. Qh5 Nd7 10. Bg5 Nf6 11. Qf3 Be7 12. Nf5 Bxf5 13. Qxf5 Ne8 14. Be3 Nd6 {0-1 (74) Cheparinov,I (2672)-Rapport,R (2676) Camarinas 2013}) 9... Bd6 {[%emt 0:02:47]} 10. Nf5 {[%emt 0:02:44]} Bxf5 {[%emt 0:02:55]} 11. Bxf5 {[%emt 0:00:06]} Nd7 {[%emt 0:01:47]} 12. g3 {[%emt 0:05:05]} Nf6 {[%emt 0:01:51]} 13. Bg5 {[%emt 0:02:20]} h6 {[%emt 0:00:26]} 14. Be3 {[%emt 0:00:27]} Re8 {[%emt 0:03:21]} 15. Qf3 {[%emt 0:03:59]} Nh7 {[%emt 0:04:01]} 16. h4 {[%emt 0:01:13]} Qf6 {[%emt 0:01:20]} 17. Kg2 {[%emt 0:12:26]} Re7 {[%emt 0:05:30]} 18. Rfe1 {[%emt 0:02:18]} Rae8 {[%emt 0:01:36]} 19. Bd3 {[%emt 0:03:35]} Ngf8 {[%emt 0:05:27]} 20. Nb1 {[%emt 0:06:58]} Qxf3+ {[%emt 0:04:13]} 21. Kxf3 {[%emt 0:00:03]} Ne6 {[%emt 0:01:31]} 22. c3 {[%emt 0:01:05]} f5 {[%emt 0:05:55]} 23. Nd2 {[%emt 0:14:45]} Rf8 {[%emt 0:03:21]} 24. Bf4 {[%emt 0:06:28]} Nxf4 {[%emt 0:01:18]} 25. Rxe7 {[%emt 0:00:13]} Nxd3 {[%emt 0:07:07]} 26. Rd7 {[%emt 0:00:43]} Rf6 {[%emt 0:01:17]} 27. Ke2 $1 {[%emt 0:03:02]} Nxb2 {[%emt 0:00:31]} 28. Rxb7 {[%emt 0:05:19]} Re6+ {[%emt 0:00:10]} 29. Kf1 {[%emt 0:00:10]} Na4 {[%emt 0:03:10]} 30. Rxa7 {[%emt 0:00:52]} Nxc3 {[%emt 0:00:30]} 31. Rc1 {[%emt 0:02:33]} (31. Ra6 $11) 31... Nb5 {[%emt 0:00:12]} 32. Ra8+ {[%emt 0:00:02]} Kf7 {[%emt 0:02:14]} 33. Rxc6 {[%emt 0:00:26]} Nxd4 {[%emt 0:02:39]} 34. Rc3 {[%emt 0:02:49]} Nb5 {[%emt 0:04:33]} 35. Rb3 {[%emt 0:01:20]} Nxa3 {[%emt 0:00:46]} 36. Ra7+ {[%emt 0:00:36]} Kf6 {[%emt 0:02:50]} 37. Raxa3 {[%emt 0:00:13]} Bxa3 {[%emt 0:00:04]} 38. Rxa3 {[%emt 0:00:04]} Nf8 {[%emt 0:02:09]} 39. Rd3 {[%emt 0:05:50]} (39. Ra8 $11 Nd7 40. Nf3) 39... Rd6 $1 {[%emt 0:00:24]} 40. Nc4 {[%emt 0:00:02]} Rd8 $1 {[%emt 0:00:43]} 41. f4 {[%emt 0:00:08]} Ne6 {[%emt 0:00:15]} 42. Ne5 {[%emt 0:00:23]} g5 {[%emt 0:00:16]} 43. hxg5+ {[%emt 0:00:12]} hxg5 {[%emt 0:00:05]} 44. Nc6 {[%emt 0:00:06]} Rd6 {[%emt 0:00:49]} 45. Nb4 {[%emt 0:01:45]} d4 {[%emt 0:00:40]} ({Much weaker is} 45... gxf4 $6 46. Nxd5+ Kg5 47. Nxf4 $11) 46. fxg5+ {[%emt 0:00:33]} Nxg5 {[%emt 0:00:16]} 47. Ra3 {[%emt 0:01:51]} Ne4 {[%emt 0:00:29]} 48. Ke2 {[%emt 0:01:43]} Kg5 {[%emt 0:00:24]} 49. Kf3 {[%emt 0:01:04]} Rb6 {[%emt 0:00:24]} 50. Nc2 $2 {[%emt 0:00:40] [#]} (50. Nd3 $15) 50... Rb3+ $2 {[%emt 0:02:25]} (50... Rb2 $1 $19 {[%cal Rb2c2]} 51. Rd3 Rxc2 52. Rxd4 Rc3+ 53. Ke2 Nxg3+ 54. Kd2 Ra3) 51. Rxb3 {[%emt 0:00:39]} Nd2+ {[%emt 0:00:03]} 52. Ke2 {[%emt 0:01:53]} Nxb3 {[%emt 0:00:03]} 53. Kd3 {[%emt 0:00:04]} Kg4 {[%emt 0:00:14]} 54. Kc4 {[%emt 0:00:05]} d3 {[%emt 0:01:01]} 55. Kxd3 $11 {[%emt 0:01:14]} Kxg3 {[%emt 0:00:06]} 56. Ne3 {[%emt 0:03:14]} Nc1+ {[%emt 0:00:42]} 57. Kc2 {[%emt 0:01:03]} f4 {[%emt 0:00:40]} 58. Nd5 {[%emt 0:00:05]} f3 {[%emt 0:00:16]} 59. Kxc1 {[%emt 0:00:01]} 1/2-1/2

[Event "2nd European Youth GP 2017"]
[Site "Jermuk"]
[Date "2017.10.07"]
[Round "5"]
[White "Gharibyan, Mamikon"]
[Black "Pogosyan, Stefan"]
[Result "1-0"]
[ECO "E10"]
[WhiteElo "2346"]
[BlackElo "2368"]
[Annotator "ChessBase"]
[PlyCount "63"]
[EventDate "2017.??.??"]
[EventType "tourn"]
[EventCountry "ARM"]
[SourceTitle "playchess.com"]
[Source "ChessBase"]
[SourceQuality "1"]
[TimeControl "5400+30"]

1. d4 {[%emt 0:00:00]} Nf6 {[%emt 0:00:08]} 2. Nf3 {[%emt 0:00:00]} e6 {[%emt 0:00:17]} 3. c4 {[%emt 0:00:00]} c5 {[%emt 0:00:19]} 4. d5 {[%emt 0:00:04]} b5 {[%emt 0:00:19]} 5. dxe6 {[%emt 0:00:40]} fxe6 {[%emt 0:00:15]} 6. Nc3 {[%emt 0:03:19]} a6 {[%emt 0:04:02]} 7. e4 {[%emt 0:01:17]} b4 {[%emt 0:03:45]} 8. e5 {[%emt 0:00:43]} bxc3 {[%emt 0:00:12]} 9. exf6 {[%emt 0:00:05]} Qxf6 {[%emt 0:06:43]} 10. Bg5 {[%emt 0:00:41]} Qf7 {[%emt 0:14:39]} 11. Bd3 {[%emt 0:06:35]} Nc6 {[%emt 0:05:20]} 12. bxc3 {[%emt 0:05:39]} d6 {[%emt 0:08:19]} 13. O-O {[%emt 0:02:54]} Be7 {[%emt 0:02:56]} 14. Be4 {[%emt 0:02:40]} Bd7 {[%emt 0:00:48]} 15. Rb1 {[%emt 0:00:06]} Rd8 {[%emt 0:10:33]} 16. Qd3 {[%emt 0:06:19]} Bxg5 {[%emt 0:06:21]} 17. Nxg5 {[%emt 0:00:10]} Qf6 {[%emt 0:07:38]} 18. Bxc6 {[%emt 0:08:36]} Bxc6 {[%emt 0:01:26]} 19. Nxe6 {[%emt 0:00:05]} Rc8 {[%emt 0:01:29]} 20. Nc7+ {[%emt 0:06:05]} Kf7 {[%emt 0:03:37]} 21. Nd5 {[%emt 0:00:15]} Bxd5 {[%emt 0:00:52]} 22. Qxd5+ {[%emt 0:00:32]} Kg6 {[%emt 0:00:11]} 23. Qd3+ {[%emt 0:00:55]} Kh6 {[%emt 0:01:02]} 24. f4 {[%emt 0:02:16]} Rc7 {[%emt 0:01:07]} 25. Qh3+ {[%emt 0:01:29]} Kg6 {[%emt 0:00:15]} 26. f5+ {[%emt 0:00:26]} Kf7 {[%emt 0:00:16]} 27. Qh5+ {[%emt 0:00:05]} Ke7 {[%emt 0:00:16]} 28. Rfe1+ {[%emt 0:00:04]} Kd7 {[%emt 0:00:10]} 29. Re6 {[%emt 0:00:04]} Qxc3 {[%emt 0:00:55]} 30. Qf7+ {[%emt 0:00:10]} Kc6 {[%emt 0:00:55]} 31. Rxd6+ {[%emt 0:00:07]} Kxd6 {[%emt 0:00:06]} 32. Qe6# {[%emt 0:00:03] Kd5} 1-0